fUSD/lending_fUSD_20260506
["ID","MTS","AMOUNT","RATE_DAILY","PERIOD"]
[421648786,1778018739000,-250.0,0.00014,2]
[421648783,1778018739000,-500.0,0.00013698,2]
[421648781,1778018739000,-21184.24,0.00013643,2]
[421648780,1778018739000,-4142.72,0.00013608,2]
[421648789,1778018739000,-500.0,0.00014743,2]
[421648798,1778018739000,-500.0,0.00014743,2]
[421648790,1778018739000,-500.0,0.00014743,2]
[421648802,1778018739000,-500.0,0.00014743,2]
[421648822,1778018739000,-478.70601786,0.00014743,2]
[421648821,1778018739000,-640.22125869,0.00014743,2]
[421648820,1778018739000,-640.22125869,0.00014743,2]
[421648819,1778018739000,-500.0,0.00014743,2]
[421648816,1778018739000,-500.0,0.00014743,2]
[421648817,1778018739000,-500.0,0.00014743,2]
[421648818,1778018739000,-500.0,0.00014743,2]
[421648815,1778018739000,-500.0,0.00014743,2]
[421648812,1778018739000,-500.0,0.00014743,2]
[421648814,1778018739000,-500.0,0.00014743,2]
[421648799,1778018739000,-500.0,0.00014743,2]
[421648811,1778018739000,-500.0,0.00014743,2]
[421648810,1778018739000,-500.0,0.00014743,2]
[421648808,1778018739000,-500.0,0.00014743,2]
[421648809,1778018739000,-500.0,0.00014743,2]
[421648807,1778018739000,-500.0,0.00014743,2]
[421648804,1778018739000,-500.0,0.00014743,2]
[421648803,1778018739000,-500.0,0.00014743,2]
[421648805,1778018739000,-500.0,0.00014743,2]
[421648806,1778018739000,-500.0,0.00014743,2]
[421648813,1778018739000,-500.0,0.00014743,2]
[421648823,1778018809000,-250.0,0.00012099,2]
[421648824,1778018809000,-250.0,0.00012821,2]
[421648826,1778018809000,-260.75684044,0.00013965,2]
[421648825,1778018809000,-300.0,0.00013965,2]
[421648830,1778018825000,-300.0,0.00013965,2]
[421648829,1778018825000,-300.0,0.00013965,2]
[421648828,1778018825000,-39.24315956,0.00013965,2]
[421648827,1778018825000,-335.0,0.00013965,2]
[421648831,1778018825000,-442.3413684,0.00013965,2]
[421648832,1778018825000,-206.95873298,0.00014643,2]
[421648833,1778018825000,-206.95873298,0.000147,2]
[421648836,1778018825000,-161.51524083,0.00014743,2]
[421648834,1778018825000,-300.0,0.00014742,2]
[421648838,1778018825000,-640.22125869,0.00014743,2]
[421648839,1778018825000,-640.22125869,0.00014743,2]
[421648844,1778018825000,-640.22125869,0.00014743,2]
[421648843,1778018825000,-640.22125869,0.00014743,2]
[421648842,1778018825000,-640.22125869,0.00014743,2]
[421648845,1778018825000,-320.85131656,0.00014743,2]
[421648840,1778018825000,-640.22125869,0.00014743,2]
[421648835,1778018825000,-150.0,0.00014743,2]
[421648837,1778018825000,-640.22125869,0.00014743,2]
[421648841,1778018825000,-640.22125869,0.00014743,2]
[421648854,1778018840000,-500.0,0.00014743,2]
[421648857,1778018840000,-500.0,0.00014743,2]
[421648859,1778018840000,-500.0,0.00014743,2]
[421648858,1778018840000,-500.0,0.00014743,2]
[421648860,1778018840000,-500.0,0.00014743,2]
[421648856,1778018840000,-500.0,0.00014743,2]
[421648853,1778018840000,-500.0,0.00014743,2]
[421648850,1778018840000,-500.0,0.00014743,2]
[421648852,1778018840000,-500.0,0.00014743,2]
[421648849,1778018840000,-500.0,0.00014743,2]
[421648851,1778018840000,-500.0,0.00014743,2]
[421648847,1778018840000,-179.14868344,0.00014743,2]
[421648848,1778018840000,-500.0,0.00014743,2]
[421648846,1778018840000,-2000.0,0.00014673,2]
[421648862,1778018840000,-500.0,0.00014743,2]
[421648855,1778018840000,-500.0,0.00014743,2]
[421648863,1778018840000,-500.0,0.00014743,2]
[421648871,1778018840000,-500.0,0.00014743,2]
[421648861,1778018840000,-500.0,0.00014743,2]
[421648864,1778018840000,-500.0,0.00014743,2]
[421648879,1778018840000,-500.0,0.00014743,2]
[421648878,1778018840000,-500.0,0.00014743,2]
[421648876,1778018840000,-500.0,0.00014743,2]
[421648877,1778018840000,-500.0,0.00014743,2]
[421648875,1778018840000,-500.0,0.00014743,2]
[421648874,1778018840000,-500.0,0.00014743,2]
[421648873,1778018840000,-500.0,0.00014743,2]
[421648880,1778018840000,-500.0,0.00014743,2]
[421648870,1778018840000,-500.0,0.00014743,2]
[421648868,1778018840000,-500.0,0.00014743,2]
[421648869,1778018840000,-500.0,0.00014743,2]
[421648866,1778018840000,-500.0,0.00014743,2]
[421648867,1778018840000,-500.0,0.00014743,2]
[421648865,1778018840000,-500.0,0.00014743,2]
[421648872,1778018840000,-500.0,0.00014743,2]
[421648893,1778018841000,-500.0,0.00014743,2]
[421648896,1778018841000,-500.0,0.00014743,2]
[421648895,1778018841000,-500.0,0.00014743,2]
[421648892,1778018841000,-500.0,0.00014743,2]
[421648890,1778018841000,-500.0,0.00014743,2]
[421648891,1778018841000,-500.0,0.00014743,2]
[421648889,1778018841000,-500.0,0.00014743,2]
[421648886,1778018841000,-500.0,0.00014743,2]
[421648887,1778018841000,-500.0,0.00014743,2]
[421648885,1778018841000,-500.0,0.00014743,2]
[421648884,1778018841000,-500.0,0.00014743,2]
[421648882,1778018841000,-500.0,0.00014743,2]
[421648881,1778018841000,-500.0,0.00014743,2]
[421648883,1778018841000,-500.0,0.00014743,2]
[421648888,1778018841000,-500.0,0.00014743,2]
[421648894,1778018841000,-500.0,0.00014743,2]
[421648898,1778018841000,-500.0,0.00014743,2]
[421648912,1778018841000,-500.0,0.00014743,2]
[421648910,1778018841000,-500.0,0.00014743,2]
[421648913,1778018841000,-454.72995436,0.00014743,2]
[421648911,1778018841000,-500.0,0.00014743,2]
[421648909,1778018841000,-500.0,0.00014743,2]
[421648908,1778018841000,-500.0,0.00014743,2]
[421648907,1778018841000,-309.14933215,0.00014743,2]
[421648897,1778018841000,-500.0,0.00014743,2]
[421648905,1778018841000,-500.0,0.00014743,2]
[421648904,1778018841000,-500.0,0.00014743,2]
[421648903,1778018841000,-500.0,0.00014743,2]
[421648902,1778018841000,-500.0,0.00014743,2]
[421648901,1778018841000,-500.0,0.00014743,2]
[421648900,1778018841000,-500.0,0.00014743,2]
[421648899,1778018841000,-500.0,0.00014743,2]
[421648906,1778018841000,-500.0,0.00014743,2]
[421648916,1778018846000,-8848.077606,0.00014744,2]
[421648915,1778018846000,-217.5765544,0.00014743,2]
[421648917,1778018846000,-26830.42749901,0.00014744,2]
[421648914,1778018846000,-45.27004564,0.00014743,2]
[421648918,1778018851000,-49920.87289137,0.00014744,2]
[421648926,1778019031000,-1200.0,0.00014699,2]
[421648925,1778019031000,-2500.0,0.00014644,2]
[421648928,1778019031000,-1507.64367794,0.000147,2]
[421648927,1778019031000,-1689.75911986,0.000147,2]
[421648935,1778019031000,-1354.51,0.00014743,2]
[421648929,1778019031000,-300.0,0.00014711,2]
[421648932,1778019031000,-300.0,0.00014742,2]
[421648930,1778019031000,-300.0,0.00014721,2]
[421648931,1778019031000,-1689.75911984,0.00014722,2]
[421648933,1778019031000,-300.0,0.00014742,2]
[421648937,1778019031000,-500.0,0.00014743,2]
[421648936,1778019031000,-182.11916908,0.00014743,2]
[421648938,1778019031000,-500.0,0.00014743,2]
[421648939,1778019031000,-468.78564454,0.00014743,2]
[421648940,1778019031000,-382691.23332784,0.00014744,2]
[421648934,1778019031000,-150.0,0.00014743,2]
[421648942,1778019032000,-104217.76215878,0.00014744,2]
[421648941,1778019032000,-57503.3987621,0.00014744,2]
[421648944,1778019032000,-781.95418243,0.00014744,2]
[421648943,1778019032000,-505.0,0.00014744,2]
[421648968,1778019038000,-107191.58222079,0.00014744,2]
[421648966,1778019038000,-95095.3264007,0.00014744,2]
[421648967,1778019038000,-286.550001,0.00014744,2]
[421649030,1778019040000,-511.96341372,0.00014873,2]
[421649025,1778019040000,-352.74735,0.0001485,2]
[421649029,1778019040000,-502.04883511,0.00014873,2]
[421649037,1778019040000,-33107.6682,0.000149,2]
[421649039,1778019040000,-2000.0,0.000149,2]
[421649050,1778019040000,-410.531867,0.000149,2]
[421649049,1778019040000,-151.0,0.000149,2]
[421649038,1778019040000,-197116.865,0.000149,2]
[421649042,1778019040000,-155.589472,0.000149,2]
[421649044,1778019040000,-155.589472,0.000149,2]
[421649041,1778019040000,-151.0,0.000149,2]
[421649040,1778019040000,-811.5121605,0.000149,2]
[421649043,1778019040000,-155.589472,0.000149,2]
[421649048,1778019040000,-151.0,0.000149,2]
[421649051,1778019040000,-410.531867,0.000149,2]
[421649035,1778019040000,-155.0,0.00014898,2]
[421649046,1778019040000,-233.442321,0.000149,2]
[421649028,1778019040000,-352.74735,0.0001486,2]
[421649016,1778019040000,-3487.51463638,0.00014744,2]
[421649015,1778019040000,-781.9541,0.00014644,2]
[421649018,1778019040000,-347.0,0.00014744,2]
[421649022,1778019040000,-3127.0,0.000148,2]
[421649017,1778019040000,-200.0,0.00014744,2]
[421649023,1778019040000,-1689.75911984,0.00014811,2]
[421649021,1778019040000,-1689.75911984,0.00014789,2]
[421649032,1778019040000,-1689.75911984,0.00014878,2]
[421649020,1778019040000,-1689.75911984,0.00014767,2]
[421649024,1778019040000,-1689.75911984,0.00014833,2]
[421649026,1778019040000,-352.74735,0.0001485,2]
[421649027,1778019040000,-1689.75911984,0.00014856,2]
[421649036,1778019040000,-5000.0,0.00014899,2]
[421649033,1778019040000,-142296.37692382,0.00014879,2]
[421649031,1778019040000,-500.0,0.00014873,2]
[421649034,1778019040000,-200.0,0.00014891,2]
[421649019,1778019040000,-1689.75911984,0.00014744,2]
[421649047,1778019040000,-1265.5375929,0.000149,2]
[421649077,1778019040000,-167.0,0.000149,2]
[421649052,1778019040000,-410.531867,0.000149,2]
[421649073,1778019040000,-386.082509,0.000149,2]
[421649074,1778019040000,-1689.75911984,0.000149,2]
[421649076,1778019040000,-190.43468082,0.000149,2]
[421649078,1778019040000,-151.0,0.000149,2]
[421649079,1778019040000,-151.0,0.000149,2]
[421649080,1778019040000,-151.0,0.000149,2]
[421649081,1778019040000,-151.0,0.000149,2]
[421649083,1778019040000,-154.76149843,0.00014997,2]
[421649082,1778019040000,-589.30247462,0.000149,2]
[421649087,1778019040000,-685.0,0.00015,5]
[421649088,1778019040000,-1467163.86095179,0.00015,2]
[421649084,1778019040000,-92004.51809746,0.00014999,2]
[421649089,1778019040000,-148885.88473906,0.00015,2]
[421649086,1778019040000,-816.0,0.00015,5]
[421649045,1778019040000,-155.589472,0.000149,2]
[421649070,1778019040000,-386.082509,0.000149,2]
[421649072,1778019040000,-386.082509,0.000149,2]
[421649071,1778019040000,-386.082509,0.000149,2]
[421649075,1778019040000,-152.2479,0.000149,2]
[421649057,1778019040000,-410.531867,0.000149,2]
[421649056,1778019040000,-410.531867,0.000149,2]
[421649055,1778019040000,-410.531867,0.000149,2]
[421649059,1778019040000,-151.0,0.000149,2]
[421649063,1778019040000,-151.0,0.000149,2]
[421649061,1778019040000,-151.0,0.000149,2]
[421649060,1778019040000,-151.0,0.000149,2]
[421649062,1778019040000,-151.0,0.000149,2]
[421649058,1778019040000,-151.0,0.000149,2]
[421649065,1778019040000,-151.0,0.000149,2]
[421649064,1778019040000,-151.0,0.000149,2]
[421649067,1778019040000,-386.082509,0.000149,2]
[421649066,1778019040000,-386.082509,0.000149,2]
[421649069,1778019040000,-386.082509,0.000149,2]
[421649068,1778019040000,-386.082509,0.000149,2]
[421649053,1778019040000,-410.531867,0.000149,2]
[421649054,1778019040000,-410.531867,0.000149,2]
[421649109,1778019043000,-117.86187116,0.00015,2]
[421649110,1778019043000,-268.96302806,0.00015,2]
[421649111,1778019043000,-3052.10697194,0.00015,2]
[421649112,1778019044000,-116860.50623934,0.00015,2]
[421649115,1778019046000,-352.00484012,0.00015,2]
[421649114,1778019046000,-23515.45303119,0.00015,2]
[421649116,1778019046000,-11301.87414914,0.00015,2]
[421649117,1778019046000,-4258.80002,0.00015,2]
[421649119,1778019046000,-5281.89327272,0.00015,2]
[421649118,1778019046000,-92461.86150603,0.00015,2]
[421649129,1778019071000,1000.0,0.00015,15]
[421649131,1778019109000,288.5087448,0.0003,120]
[421649133,1778019412000,211.7,7.534e-05,2]
[421649136,1778020065000,152.0,0.00018927,7]
[421649137,1778020069000,150.0,0.00018927,7]
[421649149,1778020232000,-1800.0,0.00012,2]
[421649148,1778020232000,-2219.85911231,0.00012,2]
[421649150,1778020232000,-1784.80487419,0.00012,2]
[421649151,1778020232000,-1046.42972454,0.00012,2]
[421649153,1778020232000,-6836.34309615,0.00012,2]
[421649154,1778020232000,-3325.22195572,0.00012,2]
[421649155,1778020232000,-19195.0,0.00012,2]
[421649156,1778020232000,-452.04785907,0.00012,2]
[421649159,1778020232000,-24084.9981981,0.00012,2]
[421649157,1778020232000,-500.0,0.00012,2]
[421649158,1778020232000,-977.0,0.00012,2]
[421649161,1778020232000,-1200.0,0.00012,2]
[421649152,1778020232000,-160591.71294139,0.00012,2]
[421649176,1778020238000,-6021.21035833,0.00012,2]
[421649179,1778020238000,-20197.1028935,0.00012,2]
[421649178,1778020238000,-11730.74947756,0.00012,2]
[421649181,1778020238000,-265.712551,0.00012,2]
[421649180,1778020238000,-449.3404125,0.00012,2]
[421649182,1778020238000,-2851.21217869,0.00012,2]
[421649183,1778020238000,-1485.85084686,0.00012,2]
[421649177,1778020238000,-10339.24356323,0.00012,2]
[421649189,1778020240000,-6369.95952329,0.00012,2]
[421649188,1778020240000,-500.0,0.00012,2]
[421649187,1778020240000,-295.44116587,0.00012,2]
[421649196,1778020243000,-18529.69766813,0.00012,2]
[421649199,1778020243000,-1607.59263891,0.00012,2]
[421649197,1778020243000,-2119.33276107,0.00012,2]
[421649198,1778020243000,-17533.17424791,0.00012,2]
[421649202,1778020244000,-31859.9999965,0.00012,2]
[421649200,1778020244000,-41929.43638801,0.00012,2]
[421649201,1778020244000,-4461.36695267,0.00012,2]
[421649233,1778020246000,-150.0,0.00013916,2]
[421649235,1778020246000,-181.53562435,0.00014021,2]
[421649232,1778020246000,-155.52,0.00013776,2]
[421649230,1778020246000,-1000.0,0.00013699,2]
[421649228,1778020246000,-1340.83,0.00013608,2]
[421649234,1778020246000,-250.0,0.00014,2]
[421649231,1778020246000,-150.0,0.00013702,2]
[421649229,1778020246000,-1112.3,0.00013608,2]
[421649227,1778020246000,-300.0,0.00013607,2]
[421649237,1778020246000,-150.0,0.0001413,2]
[421649247,1778020246000,-1573.0680554,0.00014544,2]
[421649224,1778020246000,-181.53562436,0.00013508,2]
[421649223,1778020246000,-150.0,0.00013488,2]
[421649222,1778020246000,-150.0,0.00013488,2]
[421649221,1778020246000,-150.0,0.00013488,2]
[421649220,1778020246000,-150.0,0.00013488,2]
[421649219,1778020246000,-2000.0,0.00013475,2]
[421649218,1778020246000,-161.86,0.00013475,2]
[421649216,1778020246000,-78189.11390451,0.00012,2]
[421649217,1778020246000,-306.0,0.00012,2]
[421649225,1778020246000,-300.0,0.00013607,2]
[421649226,1778020246000,-1200.0,0.00013607,2]
[421649236,1778020246000,-1734.4,0.00014093,2]
[421649249,1778020246000,-207.2677,0.00014544,2]
[421649260,1778020246000,-501.98276865,0.00014634,2]
[421649259,1778020246000,-3796.26166486,0.00014634,2]
[421649258,1778020246000,-680.79484914,0.00014634,2]
[421649256,1778020246000,-21078.31999582,0.00014634,2]
[421649257,1778020246000,-427.46515504,0.00014634,2]
[421649254,1778020246000,-164.882,0.00014633,2]
[421649255,1778020246000,-1000.0,0.00014633,2]
[421649248,1778020246000,-2000.0,0.00014544,2]
[421649253,1778020246000,-2835.531,0.00014633,2]
[421649252,1778020246000,-775.06,0.0001463,2]
[421649251,1778020246000,-150.0,0.00014558,2]
[421649241,1778020246000,-1734.4,0.00014445,2]
[421649243,1778020246000,-181.53562435,0.00014534,2]
[421649246,1778020246000,-153.74589705,0.00014544,2]
[421649240,1778020246000,-150.0,0.00014344,2]
[421649245,1778020246000,-4564.215,0.00014543,2]
[421649242,1778020246000,-4142.72,0.00014497,2]
[421649250,1778020246000,-2500.0,0.00014544,2]
[421649239,1778020246000,-150.0,0.00014237,2]
[421649238,1778020246000,-150.0,0.00014237,2]
[421649244,1778020246000,-150.0,0.00014543,2]
[421649291,1778020318000,410.15,6.841e-05,2]
[421649295,1778020319000,410.15,8.282e-05,2]
[421649294,1778020319000,410.15,7.922e-05,2]
[421649293,1778020319000,410.15,7.562e-05,2]
[421649292,1778020319000,410.15,7.201e-05,2]
[421649296,1778020320000,410.15,8.642e-05,2]
[421649297,1778020320000,410.15,9.002e-05,2]
[421649298,1778020320000,410.15,9.362e-05,2]
[421649301,1778020321000,410.15,0.00010442,2]
[421649300,1778020321000,410.15,0.00010082,2]
[421649299,1778020321000,410.15,9.722e-05,2]
[421649303,1778020637000,152.0,0.00019015,7]
[421649304,1778020746000,1350.0,0.00019,10]
[421649306,1778020794000,-358.48054058,0.00011162,2]
[421649305,1778020794000,-410.15,0.00010802,2]
[421649307,1778021013000,-51.66945942,0.00011162,2]
[421649308,1778021013000,-410.15,0.00011522,2]
[421649309,1778021013000,-1200.0,0.00011882,2]
[421649313,1778021013000,-235.0,0.000119,2]
[421649311,1778021013000,-250.0,0.00011883,2]
[421649312,1778021013000,-410.15,0.00011883,2]
[421649314,1778021013000,-410.15,0.00012243,2]
[421649315,1778021013000,-5125.27100921,0.00012279,2]
[421649310,1778021013000,-300.0,0.00011882,2]
[421649318,1778021013000,-410.15,0.00012603,2]
[421649316,1778021013000,-500.0,0.00012279,2]
[421649324,1778021013000,-500.0,0.00012665,2]
[421649321,1778021013000,-232.25,0.00012665,2]
[421649322,1778021013000,-500.0,0.00012665,2]
[421649323,1778021013000,-320.41563003,0.00012665,2]
[421649320,1778021013000,-150.0,0.00012665,2]
[421649319,1778021013000,-300.0,0.00012665,2]
[421649317,1778021013000,-300.0,0.00012602,2]
[421649334,1778021014000,-538.00989871,0.00012665,2]
[421649340,1778021014000,-500.0,0.00012665,2]
[421649336,1778021014000,-500.0,0.00012665,2]
[421649338,1778021014000,-500.0,0.00012665,2]
[421649337,1778021014000,-500.0,0.00012665,2]
[421649335,1778021014000,-500.0,0.00012665,2]
[421649339,1778021014000,-500.0,0.00012665,2]
[421649333,1778021014000,-500.0,0.00012665,2]
[421649328,1778021014000,-500.0,0.00012665,2]
[421649331,1778021014000,-500.0,0.00012665,2]
[421649330,1778021014000,-500.0,0.00012665,2]
[421649329,1778021014000,-500.0,0.00012665,2]
[421649327,1778021014000,-500.0,0.00012665,2]
[421649325,1778021014000,-500.0,0.00012665,2]
[421649326,1778021014000,-500.0,0.00012665,2]
[421649341,1778021014000,-500.0,0.00012665,2]
[421649332,1778021014000,-500.0,0.00012665,2]
[421649342,1778021014000,-500.0,0.00012665,2]
[421649355,1778021014000,-500.0,0.00012665,2]
[421649343,1778021014000,-500.0,0.00012665,2]
[421649359,1778021014000,-500.0,0.00012665,2]
[421649358,1778021014000,-500.0,0.00012665,2]
[421649356,1778021014000,-500.0,0.00012665,2]
[421649357,1778021014000,-500.0,0.00012665,2]
[421649354,1778021014000,-500.0,0.00012665,2]
[421649344,1778021014000,-500.0,0.00012665,2]
[421649350,1778021014000,-500.0,0.00012665,2]
[421649353,1778021014000,-500.0,0.00012665,2]
[421649352,1778021014000,-500.0,0.00012665,2]
[421649351,1778021014000,-500.0,0.00012665,2]
[421649349,1778021014000,-500.0,0.00012665,2]
[421649346,1778021014000,-500.0,0.00012665,2]
[421649348,1778021014000,-500.0,0.00012665,2]
[421649347,1778021014000,-500.0,0.00012665,2]
[421649345,1778021014000,-500.0,0.00012665,2]
[421649360,1778021014000,-500.0,0.00012665,2]
[421649361,1778021014000,-500.0,0.00012665,2]
[421649364,1778021015000,-500.0,0.00012665,2]
[421649362,1778021015000,-550.0,0.00012665,2]
[421649363,1778021015000,-500.0,0.00012665,2]
[421649366,1778021015000,-500.0,0.00012665,2]
[421649367,1778021015000,-500.0,0.00012665,2]
[421649368,1778021015000,-500.0,0.00012665,2]
[421649369,1778021015000,-20306.78400263,0.00012666,2]
[421649365,1778021015000,-500.0,0.00012665,2]
[421649370,1778021135000,151.21,6.663e-05,2]
[421649374,1778021136000,151.21,8.328e-05,2]
[421649373,1778021136000,151.21,7.912e-05,2]
[421649372,1778021136000,151.21,7.496e-05,2]
[421649371,1778021136000,151.21,7.079e-05,2]
[421649377,1778021346000,-151.21,8.745e-05,2]
[421649378,1778021346000,-151.21,9.161e-05,2]
[421649380,1778021346000,-151.21,9.994e-05,2]
[421649381,1778021346000,-151.21,0.0001041,2]
[421649379,1778021346000,-151.21,9.578e-05,2]
[421649382,1778021346000,-76.6135954,0.00010732,2]
[421649427,1778021433000,-500.0,0.00012665,2]
[421649429,1778021433000,-258.80098987,0.00012665,2]
[421649428,1778021433000,-500.0,0.00012665,2]
[421649435,1778021433000,-410.15,0.00012963,2]
[421649426,1778021433000,-500.0,0.00012665,2]
[421649432,1778021433000,-14242.19884812,0.00012825,2]
[421649430,1778021433000,-157328.56464867,0.00012666,2]
[421649431,1778021433000,-2414.7928179,0.00012666,2]
[421649447,1778021433000,-6992.6299628,0.00013344,2]
[421649434,1778021433000,-165.2,0.00012933,2]
[421649436,1778021433000,-14242.19884812,0.00013085,2]
[421649450,1778021433000,-150.0,0.00013488,2]
[421649446,1778021433000,-5721.31356555,0.00013344,2]
[421649444,1778021433000,-1528.25531977,0.00013344,2]
[421649425,1778021433000,-500.0,0.00012665,2]
[421649438,1778021433000,-410.15,0.00013323,2]
[421649448,1778021433000,-1340.67,0.0001336,2]
[421649449,1778021433000,-150.0,0.00013488,2]
[421649440,1778021433000,-151.21,0.00013325,2]
[421649433,1778021433000,-151.21,0.00012909,2]
[421649422,1778021433000,-300.0,0.00012664,2]
[421649417,1778021433000,-151.21,0.00012076,2]
[421649416,1778021433000,-200.0,0.00012035,2]
[421649442,1778021433000,-8944.17,0.00013334,2]
[421649395,1778021433000,-1134.09669,0.00010727,2]
[421649399,1778021433000,-1491.9358213,0.00010727,2]
[421649403,1778021433000,-83.1564046,0.00010732,2]
[421649413,1778021433000,-163.62,0.00011885,2]
[421649414,1778021433000,-492.21907655,0.00011963,2]
[421649404,1778021433000,-250.0,0.00010779,2]
[421649405,1778021433000,-151.21,0.00010827,2]
[421649406,1778021433000,-151.21,0.00011243,2]
[421649420,1778021433000,-1200.0,0.00012565,2]
[421649408,1778021433000,-5000.0,0.00011805,2]
[421649407,1778021433000,-151.21,0.0001166,2]
[421649412,1778021433000,-20076.95,0.00011807,2]
[421649411,1778021433000,-150.0,0.00011806,2]
[421649410,1778021433000,-250.0,0.00011805,2]
[421649415,1778021433000,-194.00072509,0.00011976,2]
[421649418,1778021433000,-2000.0,0.00012151,2]
[421649424,1778021433000,-500.0,0.00012665,2]
[421649423,1778021433000,-150.0,0.00012665,2]
[421649421,1778021433000,-14242.19884821,0.00012566,2]
[421649409,1778021433000,-301.21727862,0.00011805,2]
[421649458,1778021433000,-2549.38303694,0.00013488,2]
[421649419,1778021433000,-151.21,0.00012493,2]
[421649451,1778021433000,-150.0,0.00013488,2]
[421649477,1778021433000,-150.0,0.00014087,2]
[421649476,1778021433000,-1340.67,0.00014028,2]
[421649479,1778021433000,-150.0,0.00014095,2]
[421649478,1778021433000,-175.84991684,0.00014094,2]
[421649475,1778021433000,-166.66,0.00013973,2]
[421649480,1778021433000,-150.0,0.00014095,2]
[421649485,1778021433000,-14242.19884812,0.00014122,2]
[421649488,1778021433000,-500.0,0.00014223,2]
[421649492,1778021433000,-500.0,0.00014223,2]
[421649474,1778021433000,-2500.0,0.0001395,2]
[421649487,1778021433000,-500.0,0.00014223,2]
[421649491,1778021433000,-379.10052604,0.00014223,2]
[421649486,1778021433000,-500.0,0.00014223,2]
[421649490,1778021433000,-500.0,0.00014223,2]
[421649494,1778021433000,-150.0,0.00014223,2]
[421649495,1778021433000,-500.0,0.00014223,2]
[421649497,1778021433000,-500.0,0.00014223,2]
[421649496,1778021433000,-150.0,0.00014223,2]
[421649498,1778021433000,-163.83485364,0.00014223,2]
[421649456,1778021433000,-150.0,0.00013488,2]
[421649493,1778021433000,-500.0,0.00014223,2]
[421649484,1778021433000,-166.66,0.0001411,2]
[421649489,1778021433000,-500.0,0.00014223,2]
[421649483,1778021433000,-224.74966561,0.00014095,2]
[421649482,1778021433000,-150.0,0.00014095,2]
[421649459,1778021433000,-14242.19884812,0.00013603,2]
[421649452,1778021433000,-150.0,0.00013488,2]
[421649454,1778021433000,-150.0,0.00013488,2]
[421649457,1778021433000,-150.0,0.00013488,2]
[421649461,1778021433000,-410.15,0.00013683,2]
[421649455,1778021433000,-150.41189386,0.00013488,2]
[421649460,1778021433000,-2000.0,0.0001367,2]
[421649462,1778021433000,-1304.92635708,0.00013694,2]
[421649463,1778021433000,-35.74364292,0.00013694,2]
[421649453,1778021433000,-150.0,0.00013488,2]
[421649471,1778021433000,-1680.0,0.00013822,2]
[421649464,1778021433000,-166.66,0.00013699,2]
[421649473,1778021433000,-14242.19884812,0.00013863,2]
[421649481,1778021433000,-150.0,0.00014095,2]
[421649470,1778021433000,-150.0,0.00013787,2]
[421649469,1778021433000,-255.0,0.00013767,2]
[421649467,1778021433000,-763.37916136,0.00013699,2]
[421649468,1778021433000,-21.57716181,0.00013699,2]
[421649465,1778021433000,-200.0,0.00013699,2]
[421649466,1778021433000,-151.0,0.00013699,2]
[421649472,1778021433000,-166.66,0.00013836,2]
[421649519,1778021434000,-500.0,0.00014643,2]
[421649522,1778021434000,-500.0,0.00014643,2]
[421649520,1778021434000,-504.4114804,0.00014643,2]
[421649517,1778021434000,-1122.71385098,0.00014643,5]
[421649525,1778021434000,-150.0,0.00014687,2]